[Event "*** Titled Tuesday Blitz"]
[Site "Chess.com"]
[Date "2020.10.27"]
[Round "4"]
[White "TokChess"]
[Black "chessdjw"]
[Result "1/2-1/2"]
[WhiteElo "2437"]
[BlackElo "2642"]
[TimeControl "180+1"]
[EndTime "10:40:02 PDT"]
[Termination "Game drawn by repetition"]

1. c4 {[%clk 0:03:00.1]} 1... g6 {[%clk 0:02:58.9]} 2. Nc3 {[%clk 0:02:59.3]}
2... Bg7 {[%clk 0:02:57.8]} 3. g3 {[%clk 0:02:59.8]} 3... Nf6 {[%clk 0:02:52.1]}
4. Bg2 {[%clk 0:03:00.1]} 4... O-O {[%clk 0:02:52.5]} 5. e4 {[%clk 0:03:00.4]}
5... d6 {[%clk 0:02:50.5]} 6. Nge2 {[%clk 0:03:00.6]} 6... e5 {[%clk 0:02:47.7]}
7. O-O {[%clk 0:03:00.4]} 7... Nc6 {[%clk 0:02:44.2]} 8. d3 {[%clk 0:03:00.7]}
8... Nd7 {[%clk 0:02:40.7]} 9. h3 {[%clk 0:02:59.7]} 9... Nc5 {[%clk 0:02:39]}
10. Be3 {[%clk 0:02:55.2]} 10... Ne6 {[%clk 0:02:38.3]} 11. Kh2 {[%clk
0:02:54.2]} 11... a6 {[%clk 0:02:34.9]} 12. Qd2 {[%clk 0:02:54.4]} 12... Rb8
{[%clk 0:02:32.2]} 13. Rac1 {[%clk 0:02:52.9]} 13... Bd7 {[%clk 0:02:31.8]} 14.
Nd5 {[%clk 0:02:53.2]} 14... b5 {[%clk 0:02:19.9]} 15. cxb5 {[%clk 0:02:42.9]}
15... axb5 {[%clk 0:02:19.6]} 16. f4 {[%clk 0:02:41.8]} 16... exf4 {[%clk
0:02:17.5]} 17. Nexf4 {[%clk 0:02:37.8]} 17... Ncd4 {[%clk 0:01:41.5]} 18. Rf2
{[%clk 0:02:17.7]} 18... c6 {[%clk 0:01:37.8]} 19. Nxe6 {[%clk 0:02:16]} 19...
Bxe6 {[%clk 0:01:25.8]} 20. Bg5 {[%clk 0:01:59.3]} 20... f6 {[%clk 0:01:24.6]}
21. Be3 {[%clk 0:01:59.2]} 21... f5 {[%clk 0:00:50.2]} 22. Nf4 {[%clk
0:01:35.7]} 22... Bxa2 {[%clk 0:00:49.4]} 23. b4 {[%clk 0:00:47.1]} 23... Bf7
{[%clk 0:00:48.3]} 24. exf5 {[%clk 0:00:40.3]} 24... Nb3 {[%clk 0:00:47.9]} 25.
Qd1 {[%clk 0:00:37.7]} 25... Nxc1 {[%clk 0:00:48]} 26. Qxc1 {[%clk 0:00:37.8]}
26... Rc8 {[%clk 0:00:45.5]} 27. fxg6 {[%clk 0:00:35.9]} 27... hxg6 {[%clk
0:00:44.5]} 28. h4 {[%clk 0:00:35.5]} 28... d5 {[%clk 0:00:40.5]} 29. Qd1 {[%clk
0:00:30.6]} 29... Re8 {[%clk 0:00:38.2]} 30. Bc5 {[%clk 0:00:28.2]} 30... Ra8
{[%clk 0:00:26.6]} 31. Qg4 {[%clk 0:00:27.1]} 31... Qc8 {[%clk 0:00:25]} 32. Qg5
{[%clk 0:00:26.8]} 32... Qf5 {[%clk 0:00:24.8]} 33. Qxf5 {[%clk 0:00:23.8]}
33... gxf5 {[%clk 0:00:25.7]} 34. Nh3 {[%clk 0:00:22.4]} 34... Ra3 {[%clk
0:00:24.5]} 35. Rxf5 {[%clk 0:00:15.7]} 35... Rxd3 {[%clk 0:00:23.9]} 36. Rf2
{[%clk 0:00:15.7]} 36... Ra8 {[%clk 0:00:18.7]} 37. Ng5 {[%clk 0:00:15.6]} 37...
Bg6 {[%clk 0:00:17.6]} 38. Bh3 {[%clk 0:00:15.8]} 38... Rda3 {[%clk 0:00:16.8]}
39. Be6+ {[%clk 0:00:15.8]} 39... Kh8 {[%clk 0:00:17.3]} 40. Nf7+ {[%clk
0:00:15.9]} 40... Bxf7 {[%clk 0:00:17.3]} 41. Rxf7 {[%clk 0:00:16.1]} 41... d4
{[%clk 0:00:17.2]} 42. Kh3 {[%clk 0:00:15.1]} 42... d3 {[%clk 0:00:17.6]} 43.
Rd7 {[%clk 0:00:15.3]} 43... Re8 {[%clk 0:00:12.7]} 44. Bf5 {[%clk 0:00:14.9]}
44... Be5 {[%clk 0:00:08.3]} 45. Rxd3 {[%clk 0:00:13.6]} 45... Rxd3 {[%clk
0:00:07.4]} 46. Bxd3 {[%clk 0:00:14.1]} 46... Kg7 {[%clk 0:00:07.8]} 47. Bf5
{[%clk 0:00:12.9]} 47... Rd8 {[%clk 0:00:07.3]} 48. g4 {[%clk 0:00:12.5]} 48...
Rd1 {[%clk 0:00:06.8]} 49. Be4 {[%clk 0:00:11]} 49... Rd2 {[%clk 0:00:06.9]} 50.
g5 {[%clk 0:00:10.3]} 50... Re2 {[%clk 0:00:07.3]} 51. Bxc6 {[%clk 0:00:09.3]}
51... Rh2+ {[%clk 0:00:05.4]} 52. Kg4 {[%clk 0:00:09]} 52... Bc3 {[%clk
0:00:06]} 53. Bxb5 {[%clk 0:00:08.9]} 53... Be1 {[%clk 0:00:06.6]} 54. h5 {[%clk
0:00:07.9]} 54... Rh4+ {[%clk 0:00:06.9]} 55. Kf5 {[%clk 0:00:08.3]} 55... Rxh5
{[%clk 0:00:07.5]} 56. Bd4+ {[%clk 0:00:07.2]} 56... Kh7 {[%clk 0:00:07.9]} 57.
Be8 {[%clk 0:00:05.7]} 57... Rh1 {[%clk 0:00:06.3]} 58. g6+ {[%clk 0:00:05.3]}
58... Kh6 {[%clk 0:00:06.5]} 59. Be3+ {[%clk 0:00:04.8]} 59... Kg7 {[%clk
0:00:06.3]} 60. Bd4+ {[%clk 0:00:04.2]} 60... Kh6 {[%clk 0:00:06.6]} 61. Be3+
{[%clk 0:00:04.2]} 61... Kg7 {[%clk 0:00:06.9]} 62. Bd4+ {[%clk 0:00:04.7]}
62... Kh6 {[%clk 0:00:07]} 1/2-1/2

[Event "*** Titled Tuesday Blitz"]
[Site "Chess.com"]
[Date "2020.10.27"]
[Round "4"]
[White "suyu28"]
[Black "MFBerna"]
[Result "1-0"]
[WhiteElo "2614"]
[BlackElo "2364"]
[TimeControl "180+1"]
[EndTime "10:40:03 PDT"]
[Termination "suyu28 won by resignation"]

1. e4 {[%clk 0:03:00.9]} 1... c6 {[%clk 0:02:58.5]} 2. d4 {[%clk 0:02:59.5]}
2... d5 {[%clk 0:02:59.4]} 3. e5 {[%clk 0:02:59.6]} 3... c5 {[%clk 0:02:58.5]}
4. dxc5 {[%clk 0:02:58.3]} 4... e6 {[%clk 0:02:59.1]} 5. a3 {[%clk 0:02:58.1]}
5... Bxc5 {[%clk 0:02:59.5]} 6. b4 {[%clk 0:02:58.4]} 6... Bb6 {[%clk 0:03:00]}
7. Bb2 {[%clk 0:02:58.8]} 7... Nc6 {[%clk 0:03:00.5]} 8. Nf3 {[%clk 0:02:58.2]}
8... Nge7 {[%clk 0:03:00.8]} 9. Bd3 {[%clk 0:02:57.8]} 9... Ng6 {[%clk 0:03:01]}
10. O-O {[%clk 0:02:43.9]} 10... a5 {[%clk 0:03:00.5]} 11. b5 {[%clk 0:02:43.2]}
11... Nce7 {[%clk 0:03:01.1]} 12. Re1 {[%clk 0:02:42.5]} 12... O-O {[%clk
0:03:00.2]} 13. Nbd2 {[%clk 0:02:41.5]} 13... a4 {[%clk 0:02:59.4]} 14. c4
{[%clk 0:02:40.3]} 14... Nf4 {[%clk 0:02:55]} 15. Bf1 {[%clk 0:02:39.1]} 15...
Nf5 {[%clk 0:02:48]} 16. g3 {[%clk 0:02:32]} 16... Ng6 {[%clk 0:02:48.3]} 17.
Rc1 {[%clk 0:02:22.2]} 17... Ba5 {[%clk 0:02:45.5]} 18. c5 {[%clk 0:02:17.4]}
18... Bd7 {[%clk 0:02:39.2]} 19. Bd3 {[%clk 0:02:14.7]} 19... Qe7 {[%clk
0:02:28.7]} 20. h4 {[%clk 0:02:06.7]} 20... Rfc8 {[%clk 0:02:14.2]} 21. Qc2
{[%clk 0:01:43.9]} 21... Qe8 {[%clk 0:01:48.5]} 22. Bxf5 {[%clk 0:01:32.8]}
22... exf5 {[%clk 0:01:47.9]} 23. Nd4 {[%clk 0:01:33.7]} 23... Rxc5 {[%clk
0:01:28.8]} 24. Qxc5 {[%clk 0:01:24.1]} 24... Bxd2 {[%clk 0:01:29.4]} 25. f4
{[%clk 0:01:24]} 25... Ne7 {[%clk 0:00:55.2]} 26. e6 {[%clk 0:01:15]} 26... fxe6
{[%clk 0:00:51.6]} 27. Nxe6 {[%clk 0:01:12.1]} 27... Qg6 {[%clk 0:00:39]} 28.
Ng5 {[%clk 0:01:00.9]} 28... Bxc1 {[%clk 0:00:08.8]} 29. Qxe7 {[%clk 0:00:53.9]}
29... Bxb2 {[%clk 0:00:07.1]} 30. Qxd7 {[%clk 0:00:54.3]} 30... h6 {[%clk
0:00:02.3]} 31. Qxd5+ {[%clk 0:00:19.9]} 31... Kh8 {[%clk 0:00:02.7]} 32. Kg2
{[%clk 0:00:09.4]} 32... hxg5 {[%clk 0:00:02.9]} 33. hxg5 {[%clk 0:00:09.6]}
33... Qh5 {[%clk 0:00:01.3]} 34. Rh1 {[%clk 0:00:09.1]} 34... Qxh1+ {[%clk
0:00:01.9]} 35. Kxh1 {[%clk 0:00:10]} 35... Bxa3 {[%clk 0:00:02.6]} 36. Qxf5
{[%clk 0:00:09.2]} 36... Bb2 {[%clk 0:00:02.5]} 37. g6 {[%clk 0:00:06.2]} 37...
a3 {[%clk 0:00:01.9]} 38. Qh3+ {[%clk 0:00:06.2]} 38... Kg8 {[%clk 0:00:02.1]}
39. Qh7+ {[%clk 0:00:06.1]} 39... Kf8 {[%clk 0:00:03]} 40. Qh8+ {[%clk 0:00:07]}
40... Ke7 {[%clk 0:00:03.9]} 41. Qxa8 {[%clk 0:00:07.9]} 41... b6 {[%clk
0:00:04.8]} 42. g4 {[%clk 0:00:06.3]} 42... Ke6 {[%clk 0:00:04.6]} 43. Kg2
{[%clk 0:00:06.1]} 43... Kd6 {[%clk 0:00:04.5]} 44. Kf3 {[%clk 0:00:06.3]} 44...
Kc5 {[%clk 0:00:04.8]} 45. Qa4 {[%clk 0:00:05.9]} 45... Kd5 {[%clk 0:00:03.4]}
46. g5 {[%clk 0:00:06.3]} 46... Kc5 {[%clk 0:00:03.4]} 47. Kg4 {[%clk
0:00:07.2]} 47... Kd5 {[%clk 0:00:03.9]} 48. f5 {[%clk 0:00:08.1]} 48... Kc5
{[%clk 0:00:03.9]} 49. Qc2+ {[%clk 0:00:05.6]} 49... Kxb5 {[%clk 0:00:03.8]} 50.
Qb3+ {[%clk 0:00:05.6]} 50... Kc5 {[%clk 0:00:03.7]} 51. Kf4 {[%clk 0:00:05.9]}
51... Bc1+ {[%clk 0:00:03.4]} 52. Ke5 {[%clk 0:00:05]} 52... Bb2+ {[%clk
0:00:03.6]} 53. Ke6 {[%clk 0:00:04.7]} 53... b5 {[%clk 0:00:04]} 54. f6 {[%clk
0:00:05]} 54... gxf6 {[%clk 0:00:04.1]} 55. gxf6 {[%clk 0:00:05.9]} 55... a2
{[%clk 0:00:03.5]} 56. Qxa2 {[%clk 0:00:05.2]} 56... Bxf6 {[%clk 0:00:03]} 57.
Kxf6 {[%clk 0:00:04]} 57... Kb4 {[%clk 0:00:02.3]} 58. g7 {[%clk 0:00:04.9]}
58... Kc3 {[%clk 0:00:03.2]} 59. g8=Q {[%clk 0:00:05.4]} 59... Kb4 {[%clk
0:00:03.3]} 60. Qgb3+ {[%clk 0:00:06.3]} 60... Kc5 {[%clk 0:00:03]} 61. Qac2+
{[%clk 0:00:07.2]} 61... Kb6 {[%clk 0:00:03.1]} 62. Qb4 {[%clk 0:00:07.7]} 1-0

[Event "*** Titled Tuesday Blitz"]
[Site "Chess.com"]
[Date "2020.10.27"]
[Round "4"]
[White "Kavyev_Ruslan"]
[Black "Nemsko"]
[Result "1-0"]
[WhiteElo "2574"]
[BlackElo "2348"]
[TimeControl "180+1"]
[EndTime "10:40:13 PDT"]
[Termination "Kavyev_Ruslan won on time"]

1. e4 {[%clk 0:03:00.9]} 1... e5 {[%clk 0:02:59.3]} 2. Nf3 {[%clk 0:03:00.9]}
2... Nc6 {[%clk 0:02:59.9]} 3. Bb5 {[%clk 0:03:01.4]} 3... a6 {[%clk 0:03:00.3]}
4. Ba4 {[%clk 0:03:01.6]} 4... Nf6 {[%clk 0:03:00.9]} 5. O-O {[%clk 0:03:02.3]}
5... Be7 {[%clk 0:03:01.1]} 6. Re1 {[%clk 0:03:02.7]} 6... b5 {[%clk 0:03:01.7]}
7. Bb3 {[%clk 0:03:03.3]} 7... O-O {[%clk 0:03:01.2]} 8. d4 {[%clk 0:03:03.9]}
8... d6 {[%clk 0:03:01.3]} 9. c3 {[%clk 0:03:03.6]} 9... Bg4 {[%clk 0:03:01.5]}
10. Be3 {[%clk 0:03:04.2]} 10... Na5 {[%clk 0:02:48.2]} 11. Bc2 {[%clk
0:03:04.3]} 11... exd4 {[%clk 0:02:31.7]} 12. cxd4 {[%clk 0:03:05.2]} 12... c5
{[%clk 0:02:32.1]} 13. b3 {[%clk 0:03:02.7]} 13... Rc8 {[%clk 0:02:28.7]} 14.
Nbd2 {[%clk 0:03:01.9]} 14... Nc6 {[%clk 0:02:22.8]} 15. d5 {[%clk 0:02:54.3]}
15... Ne5 {[%clk 0:02:22.5]} 16. h3 {[%clk 0:02:54.5]} 16... Bh5 {[%clk
0:02:15.5]} 17. g4 {[%clk 0:02:44.4]} 17... Bg6 {[%clk 0:02:08.3]} 18. Nxe5
{[%clk 0:02:44]} 18... dxe5 {[%clk 0:02:09.2]} 19. Nf3 {[%clk 0:02:39.3]} 19...
Bd6 {[%clk 0:02:09.3]} 20. a4 {[%clk 0:02:38.7]} 20... Nxe4 {[%clk 0:02:00.4]}
21. axb5 {[%clk 0:02:36.6]} 21... axb5 {[%clk 0:01:53.7]} 22. Nd2 {[%clk
0:02:14]} 22... Nc3 {[%clk 0:01:49.3]} 23. Qc1 {[%clk 0:02:14.1]} 23... Nxd5
{[%clk 0:01:42.3]} 24. Ne4 {[%clk 0:02:08.9]} 24... Nxe3 {[%clk 0:01:31.2]} 25.
Qxe3 {[%clk 0:02:09.8]} 25... Be7 {[%clk 0:01:29.4]} 26. Red1 {[%clk 0:02:08.1]}
26... Qc7 {[%clk 0:01:24.7]} 27. Qe2 {[%clk 0:02:04.2]} 27... c4 {[%clk
0:01:18.5]} 28. bxc4 {[%clk 0:02:04.2]} 28... bxc4 {[%clk 0:01:19.4]} 29. Ra4
{[%clk 0:01:59.1]} 29... f6 {[%clk 0:01:09.4]} 30. Rc1 {[%clk 0:01:55.3]} 30...
Bf7 {[%clk 0:01:09.6]} 31. Bb3 {[%clk 0:01:50.9]} 31... Qd7 {[%clk 0:00:50.8]}
32. Bc2 {[%clk 0:01:48.5]} 32... Ra8 {[%clk 0:00:44.7]} 33. Rxa8 {[%clk
0:01:47.8]} 33... Rxa8 {[%clk 0:00:45.6]} 34. Ng3 {[%clk 0:01:48.6]} 34... Rd8
{[%clk 0:00:26.2]} 35. Nf5 {[%clk 0:01:45.4]} 35... Bf8 {[%clk 0:00:26.4]} 36.
Qe4 {[%clk 0:01:37.2]} 36... g6 {[%clk 0:00:24.7]} 37. Ne3 {[%clk 0:01:37.5]}
37... Qd4 {[%clk 0:00:22.6]} 38. Qf3 {[%clk 0:01:37.2]} 38... Qb2 {[%clk
0:00:20.5]} 39. Rb1 {[%clk 0:01:36.3]} 39... Qd4 {[%clk 0:00:16.2]} 40. Qxf6
{[%clk 0:01:36]} 40... e4 {[%clk 0:00:15]} 41. Qf4 {[%clk 0:01:27.3]} 41... Bd6
{[%clk 0:00:13.8]} 42. Qxe4 {[%clk 0:01:27.3]} 42... Qxe4 {[%clk 0:00:14.2]} 43.
Bxe4 {[%clk 0:01:28.2]} 43... c3 {[%clk 0:00:13.8]} 44. Rc1 {[%clk 0:01:18.5]}
44... Rc8 {[%clk 0:00:14.3]} 45. Bd5 {[%clk 0:01:14.7]} 45... Ba3 {[%clk
0:00:13.5]} 46. Rc2 {[%clk 0:01:14.1]} 46... Rc5 {[%clk 0:00:11.4]} 47. Bxf7+
{[%clk 0:01:13.9]} 47... Kxf7 {[%clk 0:00:12.3]} 48. Kf1 {[%clk 0:01:14.6]}
48... Ke6 {[%clk 0:00:12.2]} 49. Ke2 {[%clk 0:01:15.2]} 49... Ke5 {[%clk
0:00:12.3]} 50. Kd3 {[%clk 0:01:15.7]} 50... Bb2 {[%clk 0:00:12.6]} 51. Nd1
{[%clk 0:01:16.1]} 51... Ba1 {[%clk 0:00:12.5]} 52. Ke3 {[%clk 0:01:12.3]} 52...
Rd5 {[%clk 0:00:10.7]} 53. f4+ {[%clk 0:01:12.6]} 53... Ke6 {[%clk 0:00:10.9]}
54. Nxc3 {[%clk 0:01:12.8]} 54... Rc5 {[%clk 0:00:11]} 55. Kd3 {[%clk
0:01:13.1]} 55... Bxc3 {[%clk 0:00:10.9]} 56. Rxc3 {[%clk 0:01:14]} 56... Rd5+
{[%clk 0:00:11.4]} 57. Ke3 {[%clk 0:01:14.3]} 57... Rd1 {[%clk 0:00:11.8]} 58.
Rc7 {[%clk 0:01:13.1]} 58... h5 {[%clk 0:00:09.4]} 59. Rc6+ {[%clk 0:01:13.2]}
59... Kf7 {[%clk 0:00:09.6]} 60. gxh5 {[%clk 0:01:09.4]} 60... gxh5 {[%clk
0:00:10.5]} 61. Rh6 {[%clk 0:01:09.9]} 61... Re1+ {[%clk 0:00:06.9]} 62. Kf3
{[%clk 0:01:09.7]} 62... Rf1+ {[%clk 0:00:07.4]} 63. Kg3 {[%clk 0:01:09.1]}
63... Rg1+ {[%clk 0:00:08]} 64. Kf2 {[%clk 0:01:08.7]} 64... Ra1 {[%clk
0:00:05.4]} 65. Rxh5 {[%clk 0:01:08.7]} 65... Ra2+ {[%clk 0:00:06.1]} 66. Kg3
{[%clk 0:01:08.8]} 66... Kg6 {[%clk 0:00:06.5]} 67. Rb5 {[%clk 0:01:08.4]} 67...
Ra3+ {[%clk 0:00:07.1]} 68. Kg4 {[%clk 0:01:08.7]} 68... Ra1 {[%clk 0:00:06.3]}
69. Rb6+ {[%clk 0:01:08.4]} 69... Kg7 {[%clk 0:00:06]} 70. h4 {[%clk 0:01:07]}
70... Rg1+ {[%clk 0:00:05.9]} 71. Kf5 {[%clk 0:01:06.6]} 71... Rh1 {[%clk
0:00:06.5]} 72. Kg5 {[%clk 0:01:01.5]} 72... Rg1+ {[%clk 0:00:06.4]} 73. Kh5
{[%clk 0:01:02]} 73... Rf1 {[%clk 0:00:06.2]} 74. Kg4 {[%clk 0:00:57.9]} 74...
Rg1+ {[%clk 0:00:06.2]} 75. Kf5 {[%clk 0:00:58.4]} 75... Rh1 {[%clk 0:00:06.2]}
76. Rb7+ {[%clk 0:00:59]} 76... Kh6 {[%clk 0:00:06.2]} 77. Rb8 {[%clk
0:00:59.2]} 77... Kg7 {[%clk 0:00:04.5]} 78. Rb7+ {[%clk 0:00:55.7]} 78... Kh6
{[%clk 0:00:04.5]} 79. Kf6 {[%clk 0:00:56.3]} 79... Rxh4 {[%clk 0:00:03.2]} 80.
f5 {[%clk 0:00:57]} 80... Rh1 {[%clk 0:00:03.3]} 81. Kf7 {[%clk 0:00:57.4]}
81... Rf1 {[%clk 0:00:02.8]} 82. f6 {[%clk 0:00:56.9]} 82... Kh7 {[%clk
0:00:03.3]} 83. Rb2 {[%clk 0:00:54.6]} 83... Rh1 {[%clk 0:00:02.2]} 84. Re2
{[%clk 0:00:50.3]} 84... Rh3 {[%clk 0:00:01.8]} 85. Ke7 {[%clk 0:00:39.5]} 85...
Kg8 {[%clk 0:00:01.6]} 86. f7+ {[%clk 0:00:39.5]} 1-0

[Event "*** Titled Tuesday Blitz"]
[Site "Chess.com"]
[Date "2020.10.27"]
[Round "4"]
[White "WildTricks"]
[Black "mr65"]
[Result "0-1"]
[WhiteElo "2395"]
[BlackElo "2208"]
[TimeControl "180+1"]
[EndTime "10:40:14 PDT"]
[Termination "mr65 won by checkmate"]

1. e4 {[%clk 0:03:00.9]} 1... e5 {[%clk 0:02:58.8]} 2. Nf3 {[%clk 0:02:55.4]}
2... Nc6 {[%clk 0:02:58.1]} 3. Bb5 {[%clk 0:02:55.3]} 3... a6 {[%clk 0:02:58.1]}
4. Ba4 {[%clk 0:02:54.9]} 4... Nf6 {[%clk 0:02:58]} 5. O-O {[%clk 0:02:55]} 5...
Be7 {[%clk 0:02:57.5]} 6. d4 {[%clk 0:02:54.2]} 6... b5 {[%clk 0:02:51.3]} 7.
Bb3 {[%clk 0:02:53.3]} 7... d6 {[%clk 0:02:49.1]} 8. Re1 {[%clk 0:02:49.1]} 8...
exd4 {[%clk 0:02:43.9]} 9. Bd5 {[%clk 0:02:44.3]} 9... Bd7 {[%clk 0:02:32.1]}
10. Nxd4 {[%clk 0:02:43.2]} 10... Nxd5 {[%clk 0:02:30.2]} 11. Nxc6 {[%clk
0:02:41.7]} 11... Bxc6 {[%clk 0:02:26.7]} 12. exd5 {[%clk 0:02:42.3]} 12... Bd7
{[%clk 0:02:26.2]} 13. Bg5 {[%clk 0:02:42]} 13... f6 {[%clk 0:02:20.8]} 14. Bh4
{[%clk 0:02:15]} 14... O-O {[%clk 0:02:16.2]} 15. Nd2 {[%clk 0:02:12.7]} 15...
Re8 {[%clk 0:02:09.3]} 16. Nf3 {[%clk 0:02:12.2]} 16... f5 {[%clk 0:02:00.9]}
17. Rxe7 {[%clk 0:01:45.4]} 17... Rxe7 {[%clk 0:01:57.7]} 18. Qd2 {[%clk
0:01:42.3]} 18... Qe8 {[%clk 0:01:52.4]} 19. Bxe7 {[%clk 0:01:40.6]} 19... Qxe7
{[%clk 0:01:52.2]} 20. Re1 {[%clk 0:01:40.5]} 20... Qf7 {[%clk 0:01:51.5]} 21.
Qd4 {[%clk 0:01:08.1]} 21... Re8 {[%clk 0:01:40.9]} 22. Rxe8+ {[%clk 0:01:05.6]}
22... Qxe8 {[%clk 0:01:34.5]} 23. Kf1 {[%clk 0:01:04.9]} 23... Qe4 {[%clk
0:01:18.2]} 24. Qxe4 {[%clk 0:00:57.3]} 24... fxe4 {[%clk 0:01:17.7]} 25. Nd2
{[%clk 0:00:44.1]} 25... Bc8 {[%clk 0:01:09.5]} 26. b3 {[%clk 0:00:35.8]} 26...
b4 {[%clk 0:01:02.6]} 27. Nxe4 {[%clk 0:00:12.9]} 27... Bb7 {[%clk 0:01:01.4]}
28. f3 {[%clk 0:00:12.8]} 28... Bxd5 {[%clk 0:00:58.9]} 29. Nf2 {[%clk
0:00:13.4]} 29... Kf7 {[%clk 0:00:52.8]} 30. Nd3 {[%clk 0:00:13.1]} 30... c5
{[%clk 0:00:51.1]} 31. Ke2 {[%clk 0:00:13.3]} 31... a5 {[%clk 0:00:47.4]} 32.
Ke3 {[%clk 0:00:13.4]} 32... a4 {[%clk 0:00:42.4]} 33. Nf4 {[%clk 0:00:09.1]}
33... axb3 {[%clk 0:00:38.4]} 34. axb3 {[%clk 0:00:10]} 34... Bc6 {[%clk
0:00:34.3]} 35. g4 {[%clk 0:00:08.1]} 35... g5 {[%clk 0:00:32.8]} 36. Ne2 {[%clk
0:00:07.3]} 36... h6 {[%clk 0:00:29.7]} 37. Ng3 {[%clk 0:00:07.2]} 37... Bd7
{[%clk 0:00:25.1]} 38. Nf1 {[%clk 0:00:06.6]} 38... Kf6 {[%clk 0:00:21.1]} 39.
Nd2 {[%clk 0:00:06.5]} 39... Be8 {[%clk 0:00:17.9]} 40. Ne4+ {[%clk 0:00:06.2]}
40... Ke5 {[%clk 0:00:17.7]} 41. Nd2 {[%clk 0:00:03.3]} 41... Bg6 {[%clk
0:00:17]} 42. Nc4+ {[%clk 0:00:03.1]} 42... Ke6 {[%clk 0:00:16.7]} 43. Kd2
{[%clk 0:00:03]} 43... d5 {[%clk 0:00:16.3]} 44. Ne3 {[%clk 0:00:03.1]} 44...
Ke5 {[%clk 0:00:14.5]} 45. Ng2 {[%clk 0:00:03.8]} 45... c4 {[%clk 0:00:13.3]}
46. h4 {[%clk 0:00:03.5]} 46... c3+ {[%clk 0:00:12.6]} 47. Kd1 {[%clk
0:00:03.5]} 47... d4 {[%clk 0:00:12.5]} 48. hxg5 {[%clk 0:00:03.3]} 48... hxg5
{[%clk 0:00:12]} 49. Kc1 {[%clk 0:00:03.8]} 49... d3 {[%clk 0:00:11.5]} 50. cxd3
{[%clk 0:00:04.2]} 50... Bxd3 {[%clk 0:00:11.3]} 51. Kd1 {[%clk 0:00:04.8]}
51... Kd4 {[%clk 0:00:09.5]} 52. Kc1 {[%clk 0:00:05]} 52... Be2 {[%clk
0:00:08.8]} 53. Ne1 {[%clk 0:00:05]} 53... Ke3 {[%clk 0:00:07.8]} 54. Nc2+
{[%clk 0:00:05.3]} 54... Kxf3 {[%clk 0:00:07.2]} 55. Nxb4 {[%clk 0:00:06.2]}
55... Kxg4 {[%clk 0:00:06.8]} 56. Nd5 {[%clk 0:00:06.6]} 56... Bb5 {[%clk
0:00:05.6]} 57. Nxc3 {[%clk 0:00:06.5]} 57... Ba6 {[%clk 0:00:05.8]} 58. Kd2
{[%clk 0:00:06.6]} 58... Kf3 {[%clk 0:00:05.7]} 59. Ke1 {[%clk 0:00:06]} 59...
g4 {[%clk 0:00:05.6]} 60. Nd5 {[%clk 0:00:05.6]} 60... g3 {[%clk 0:00:05.5]} 61.
Nc7 {[%clk 0:00:01.4]} 61... g2 {[%clk 0:00:05.5]} 62. Nxa6 {[%clk 0:00:02.3]}
62... g1=Q+ {[%clk 0:00:05]} 63. Kd2 {[%clk 0:00:03.2]} 63... Qb6 {[%clk
0:00:04.3]} 64. Nc5 {[%clk 0:00:02.9]} 64... Qxc5 {[%clk 0:00:03.9]} 65. Kd3
{[%clk 0:00:03.8]} 65... Kf4 {[%clk 0:00:03.3]} 66. Kd2 {[%clk 0:00:03.4]} 66...
Qb4+ {[%clk 0:00:03.4]} 67. Kd3 {[%clk 0:00:04.3]} 67... Ke5 {[%clk 0:00:03.4]}
68. Kc2 {[%clk 0:00:05.2]} 68... Kd4 {[%clk 0:00:03.5]} 69. Kb2 {[%clk
0:00:06.1]} 69... Kd3 {[%clk 0:00:03.2]} 70. Ka2 {[%clk 0:00:07]} 70... Kc2
{[%clk 0:00:02.5]} 71. Ka1 {[%clk 0:00:07.9]} 71... Qa3# {[%clk 0:00:02.8]} 0-1